[Event "Live Chess"]
[Site "Chess.com"]
[Date "2023.05.21"]
[Round "-"]
[White "lateforthesky"]
[Black "FMOlexandrProhorov"]
[Result "0-1"]
[WhiteElo "2116"]
[BlackElo "2181"]
[TimeControl "300"]
[EndTime "2:42:27 PDT"]
[Termination "FMOlexandrProhorov won on time"]

1. e4 {[%clk 0:04:56.5]} 1... c5 {[%clk 0:04:57.9]} 2. Nf3 {[%clk 0:04:55.5]}
2... e6 {[%clk 0:04:57.6]} 3. c3 {[%clk 0:04:50.6]} 3... Nf6 {[%clk 0:04:53.6]}
4. e5 {[%clk 0:04:49.4]} 4... Nd5 {[%clk 0:04:53]} 5. d4 {[%clk 0:04:48.6]} 5...
cxd4 {[%clk 0:04:51.5]} 6. cxd4 {[%clk 0:04:47.9]} 6... Nc6 {[%clk 0:04:50.8]}
7. Bc4 {[%clk 0:04:47]} 7... d6 {[%clk 0:04:49.7]} 8. O-O {[%clk 0:04:43.7]}
8... dxe5 {[%clk 0:04:46]} 9. dxe5 {[%clk 0:04:41.8]} 9... Ndb4 {[%clk 0:04:45]}
10. Qxd8+ {[%clk 0:04:36.3]} 10... Nxd8 {[%clk 0:04:44.2]} 11. Na3 {[%clk
0:04:29.1]} 11... Ndc6 {[%clk 0:04:42.6]} 12. Nb5 {[%clk 0:04:25.1]} 12... Kd8
{[%clk 0:04:34.8]} 13. Bg5+ {[%clk 0:04:08.1]} 13... Be7 {[%clk 0:04:31.7]} 14.
Rad1+ {[%clk 0:04:05.7]} 14... Bd7 {[%clk 0:04:30.1]} 15. Nd6 {[%clk 0:03:56.7]}
15... Bxg5 {[%clk 0:04:28.2]} 16. Nxf7+ {[%clk 0:03:28.7]} 16... Ke7 {[%clk
0:04:24.9]} 17. N7xg5 {[%clk 0:03:24.8]} 17... Rac8 {[%clk 0:04:11.9]} 18. a3
{[%clk 0:03:19.6]} 18... Na6 {[%clk 0:04:06.4]} 19. Bd3 {[%clk 0:03:06.1]} 19...
Nc5 {[%clk 0:04:03.5]} 20. Bxh7 {[%clk 0:03:02.6]} 20... Rcf8 {[%clk 0:03:56.2]}
21. b4 {[%clk 0:02:56]} 21... Na4 {[%clk 0:03:45.8]} 22. Rfe1 {[%clk 0:02:44.4]}
22... Nc3 {[%clk 0:03:37]} 23. Rd3 {[%clk 0:02:40.5]} 23... Nd5 {[%clk
0:03:36.5]} 24. Red1 {[%clk 0:02:31]} 24... Be8 {[%clk 0:03:26.4]} 25. Be4
{[%clk 0:02:28.4]} 25... Nf4 {[%clk 0:03:24]} 26. R3d2 {[%clk 0:02:18]} 26...
Rh5 {[%clk 0:03:15.8]} 27. g3 {[%clk 0:02:08.2]} 27... Nh3+ {[%clk 0:02:58.5]}
28. Nxh3 {[%clk 0:02:05.8]} 28... Rxh3 {[%clk 0:02:57.9]} 29. Kg2 {[%clk
0:01:59.9]} 29... Rh5 {[%clk 0:02:55.6]} 30. b5 {[%clk 0:01:49.2]} 30... Nxe5
{[%clk 0:02:47.8]} 31. Nxe5 {[%clk 0:01:48.1]} 31... Rxe5 {[%clk 0:02:47.7]} 32.
Bxb7 {[%clk 0:01:41.3]} 32... Bxb5 {[%clk 0:02:43.6]} 33. f4 {[%clk 0:01:34.3]}
33... Rc5 {[%clk 0:02:41.4]} 34. Bf3 {[%clk 0:01:24]} 34... Rfc8 {[%clk
0:02:38.2]} 35. h4 {[%clk 0:01:21.2]} 35... Rc3 {[%clk 0:02:35.4]} 36. Re1
{[%clk 0:01:07]} 36... Rxa3 {[%clk 0:02:17.1]} 37. f5 {[%clk 0:01:05.8]} 37...
Bd7 {[%clk 0:01:58.4]} 38. fxe6 {[%clk 0:00:54]} 38... Be8 {[%clk 0:01:56.4]}
39. Rb2 {[%clk 0:00:43.9]} 39... Rcc3 {[%clk 0:01:30.5]} 40. Rb7+ {[%clk
0:00:40.7]} 40... Kf6 {[%clk 0:01:27.3]} 41. Bd5 {[%clk 0:00:16.3]} 41... Rxg3+
{[%clk 0:01:25.4]} 42. Kf2 {[%clk 0:00:14.9]} 42... Rgd3 {[%clk 0:01:20]} 43.
Be4 {[%clk 0:00:09.3]} 43... Rh3 {[%clk 0:01:12.7]} 44. Kg2 {[%clk 0:00:07]}
44... Rxh4 {[%clk 0:01:06.2]} 45. e7 {[%clk 0:00:05.2]} 45... Rg4+ {[%clk
0:01:03]} 46. Kh2 {[%clk 0:00:03.6]} 46... Ra2+ {[%clk 0:00:58.3]} 47. Kh3
{[%clk 0:00:03]} 47... Rg5 {[%clk 0:00:52.6]} 48. Bd5 {[%clk 0:00:01.6]} 48...
Rxd5 {[%clk 0:00:51.3]} 49. Rf1+ {[%clk 0:00:00.3]} 49... Kg6 {[%clk 0:00:50]}
0-1

[Event "Live Chess"]
[Site "Chess.com"]
[Date "2023.05.21"]
[Round "-"]
[White "Ian-Morley"]
[Black "Berdgross"]
[Result "1/2-1/2"]
[WhiteElo "1075"]
[BlackElo "663"]
[TimeControl "300"]
[EndTime "2:42:34 PDT"]
[Termination "Game drawn - insufficient material"]

1. d4 {[%clk 0:04:58.7]} 1... d5 {[%clk 0:04:57.5]} 2. Nf3 {[%clk 0:04:57.6]}
2... e6 {[%clk 0:04:56.7]} 3. Bf4 {[%clk 0:04:56.6]} 3... Nc6 {[%clk 0:04:56.3]}
4. e3 {[%clk 0:04:55]} 4... Nf6 {[%clk 0:04:54.8]} 5. Bb5 {[%clk 0:04:53]} 5...
a6 {[%clk 0:04:52.3]} 6. Bxc6+ {[%clk 0:04:52.1]} 6... bxc6 {[%clk 0:04:51.6]}
7. c3 {[%clk 0:04:51.7]} 7... c5 {[%clk 0:04:49.4]} 8. Nbd2 {[%clk 0:04:51.1]}
8... cxd4 {[%clk 0:04:47.9]} 9. exd4 {[%clk 0:04:50.2]} 9... Ne4 {[%clk
0:04:44.9]} 10. Nxe4 {[%clk 0:04:49]} 10... dxe4 {[%clk 0:04:43.7]} 11. Ne5
{[%clk 0:04:48.6]} 11... Bd6 {[%clk 0:04:39.4]} 12. Qe2 {[%clk 0:04:47.3]} 12...
Bxe5 {[%clk 0:04:37.7]} 13. Bxe5 {[%clk 0:04:46.5]} 13... Qg5 {[%clk 0:04:32.2]}
14. Qxe4 {[%clk 0:04:39.4]} 14... Rb8 {[%clk 0:04:22.4]} 15. Bxc7 {[%clk
0:04:36.6]} 15... Rxb2 {[%clk 0:04:20.6]} 16. Qc6+ {[%clk 0:04:33.5]} 16... Bd7
{[%clk 0:04:13.6]} 17. Qa8+ {[%clk 0:04:24.9]} 17... Ke7 {[%clk 0:04:11.5]} 18.
Qf3 {[%clk 0:03:55.4]} 18... Qd2+ {[%clk 0:03:57.5]} 19. Kf1 {[%clk 0:03:50.5]}
19... Bb5+ {[%clk 0:03:52.5]} 20. Kg1 {[%clk 0:03:48]} 20... Be2 {[%clk
0:03:36.3]} 21. Bd6+ {[%clk 0:03:40.8]} 21... Kxd6 {[%clk 0:03:33.2]} 22. Qg3+
{[%clk 0:03:37.4]} 22... Ke7 {[%clk 0:03:29.2]} 23. Qc7+ {[%clk 0:03:34.3]}
23... Kf6 {[%clk 0:03:26.3]} 24. g3 {[%clk 0:03:26.1]} 24... Bd3 {[%clk
0:03:16.6]} 25. Qf4+ {[%clk 0:03:23.5]} 25... Qxf4 {[%clk 0:03:13.8]} 26. gxf4
{[%clk 0:03:22.6]} 26... Rb1+ {[%clk 0:03:10.4]} 27. Rxb1 {[%clk 0:03:20.7]}
27... Bxb1 {[%clk 0:03:09.2]} 28. Kg2 {[%clk 0:03:20.3]} 28... Bxa2 {[%clk
0:03:08]} 29. Ra1 {[%clk 0:03:19]} 29... Bc4 {[%clk 0:03:04.8]} 30. Kf3 {[%clk
0:03:16.9]} 30... Rb8 {[%clk 0:03:00]} 31. Ra5 {[%clk 0:03:14.8]} 31... Rb3
{[%clk 0:02:55.8]} 32. d5 {[%clk 0:03:13.4]} 32... Rxc3+ {[%clk 0:02:53.2]} 33.
Ke4 {[%clk 0:03:12.5]} 33... exd5+ {[%clk 0:02:50.4]} 34. Kd4 {[%clk 0:03:11.8]}
34... Rd3+ {[%clk 0:02:43.9]} 35. Kc5 {[%clk 0:03:10.4]} 35... Rd2 {[%clk
0:02:34.8]} 36. h4 {[%clk 0:03:08.3]} 36... Rxf2 {[%clk 0:02:32.1]} 37. Ra1
{[%clk 0:02:59.8]} 37... Rxf4 {[%clk 0:02:30.2]} 38. Rb1 {[%clk 0:02:58.7]}
38... Rxh4 {[%clk 0:02:26]} 39. Rb6+ {[%clk 0:02:57.6]} 39... Ke7 {[%clk
0:02:21.2]} 40. Rb7+ {[%clk 0:02:56.3]} 40... Kf6 {[%clk 0:02:19.8]} 41. Rb6+
{[%clk 0:02:55.3]} 41... Kf5 {[%clk 0:02:18.7]} 42. Rb7 {[%clk 0:02:53.3]} 42...
g5 {[%clk 0:02:11.5]} 43. Rxf7+ {[%clk 0:02:51.8]} 43... Ke6 {[%clk 0:02:07.7]}
44. Rf8 {[%clk 0:02:49.3]} 44... g4 {[%clk 0:02:05.9]} 45. Kc6 {[%clk
0:02:48.2]} 45... g3 {[%clk 0:02:01.3]} 46. Re8+ {[%clk 0:02:47.2]} 46... Kf7
{[%clk 0:01:57.7]} 47. Re1 {[%clk 0:02:42.9]} 47... Rh3 {[%clk 0:01:54.9]} 48.
Rg1 {[%clk 0:02:42.1]} 48... g2 {[%clk 0:01:52.4]} 49. Rxg2 {[%clk 0:02:40.3]}
49... h5 {[%clk 0:01:49]} 50. Rf2+ {[%clk 0:02:33.6]} 50... Kg6 {[%clk
0:01:43.6]} 51. Rf8 {[%clk 0:02:22.8]} 51... Kg5 {[%clk 0:01:42]} 52. Kd6 {[%clk
0:02:22.2]} 52... h4 {[%clk 0:01:39.5]} 53. Ke5 {[%clk 0:02:21.6]} 53... Kg4
{[%clk 0:01:37.6]} 54. Rg8+ {[%clk 0:02:19.5]} 54... Kh5 {[%clk 0:01:35.7]} 55.
Kf5 {[%clk 0:02:17.5]} 55... Rf3+ {[%clk 0:01:34.4]} 56. Ke5 {[%clk 0:02:13.4]}
56... h3 {[%clk 0:01:30.2]} 57. Rh8+ {[%clk 0:02:11.6]} 57... Kg4 {[%clk
0:01:28.4]} 58. Rg8+ {[%clk 0:02:10.6]} 58... Kh5 {[%clk 0:01:26.7]} 59. Rh8+
{[%clk 0:02:09.7]} 59... Kg4 {[%clk 0:01:25.7]} 60. Rg8+ {[%clk 0:02:08.9]}
60... Kh4 {[%clk 0:01:24.3]} 61. Rh8+ {[%clk 0:02:08.2]} 61... Kg3 {[%clk
0:01:22.9]} 62. Rg8+ {[%clk 0:02:05.7]} 62... Kh4 {[%clk 0:01:19.8]} 63. Rh8+
{[%clk 0:02:04.6]} 63... Kg3 {[%clk 0:01:15.8]} 64. Rg8+ {[%clk 0:02:03.6]}
64... Kf2 {[%clk 0:01:14.2]} 65. Rh8 {[%clk 0:01:59.6]} 65... d4 {[%clk
0:01:09.9]} 66. Kxd4 {[%clk 0:01:54.5]} 66... Be6 {[%clk 0:01:04.5]} 67. Ke5
{[%clk 0:01:45.8]} 67... Bg4 {[%clk 0:01:00.5]} 68. Kd6 {[%clk 0:01:43.8]} 68...
Kg2 {[%clk 0:00:55.9]} 69. Kc5 {[%clk 0:01:42.3]} 69... h2 {[%clk 0:00:53.1]}
70. Kb6 {[%clk 0:01:41.4]} 70... h1=Q {[%clk 0:00:51.1]} 71. Rxh1 {[%clk
0:01:39.4]} 71... Kxh1 {[%clk 0:00:49.3]} 72. Kxa6 {[%clk 0:01:38.6]} 72... Ra3+
{[%clk 0:00:47.4]} 73. Kb6 {[%clk 0:01:36.6]} 73... Ra4 {[%clk 0:00:43.3]} 74.
Kb5 {[%clk 0:01:35]} 74... Ra1 {[%clk 0:00:42.2]} 75. Kb4 {[%clk 0:01:34]} 75...
Be2 {[%clk 0:00:40.4]} 76. Kc3 {[%clk 0:01:32.6]} 76... Kg2 {[%clk 0:00:40.2]}
77. Kd2 {[%clk 0:01:31.5]} 77... Ra2+ {[%clk 0:00:39]} 78. Kc3 {[%clk
0:01:30.5]} 78... Kf3 {[%clk 0:00:36]} 79. Kb3 {[%clk 0:01:29]} 79... Rd2 {[%clk
0:00:33.4]} 80. Kc3 {[%clk 0:01:28]} 80... Ke4 {[%clk 0:00:32.9]} 81. Kxd2
{[%clk 0:01:26.5]} 1/2-1/2

[Event "Live Chess"]
[Site "Chess.com"]
[Date "2023.05.21"]
[Round "-"]
[White "AttackingSnowLeopard"]
[Black "RoaringKnights"]
[Result "1-0"]
[WhiteElo "2207"]
[BlackElo "1034"]
[TimeControl "300"]
[EndTime "2:42:34 PDT"]
[Termination "AttackingSnowLeopard won by checkmate"]

1. d4 {[%clk 0:04:58.4]} 1... c6 {[%clk 0:04:56.9]} 2. c4 {[%clk 0:04:57.2]}
2... d5 {[%clk 0:04:54.8]} 3. Nf3 {[%clk 0:04:56.2]} 3... Bf5 {[%clk 0:04:52]}
4. Nc3 {[%clk 0:04:54.1]} 4... e6 {[%clk 0:04:50.9]} 5. Qb3 {[%clk 0:04:51.7]}
5... Nd7 {[%clk 0:04:46.3]} 6. Qxb7 {[%clk 0:04:48.2]} 6... Ne7 {[%clk
0:04:44.7]} 7. cxd5 {[%clk 0:04:45]} 7... cxd5 {[%clk 0:04:42.5]} 8. Bf4 {[%clk
0:04:42.9]} 8... Ng6 {[%clk 0:04:39.9]} 9. Bc7 {[%clk 0:04:35.9]} 9... Qc8
{[%clk 0:04:33.2]} 10. Qxc8+ {[%clk 0:04:35.4]} 10... Rxc8 {[%clk 0:04:31.7]}
11. Ba5 {[%clk 0:04:32.9]} 11... Bd6 {[%clk 0:04:28.5]} 12. e3 {[%clk
0:04:28.9]} 12... O-O {[%clk 0:04:20.8]} 13. Be2 {[%clk 0:04:26.8]} 13... Nb6
{[%clk 0:04:16.3]} 14. O-O {[%clk 0:04:25.1]} 14... Nc4 {[%clk 0:04:13.8]} 15.
Bxc4 {[%clk 0:04:23]} 15... Rxc4 {[%clk 0:04:10.5]} 16. Nd2 {[%clk 0:04:21.5]}
16... Rc6 {[%clk 0:03:57.4]} 17. Nb5 {[%clk 0:04:17.9]} 17... Be7 {[%clk
0:03:41.8]} 18. Rfc1 {[%clk 0:04:11.5]} 18... Ra6 {[%clk 0:03:27.5]} 19. Nb3
{[%clk 0:04:08.9]} 19... Rb8 {[%clk 0:03:22.8]} 20. Nc7 {[%clk 0:04:06.1]} 20...
Rd6 {[%clk 0:03:06.6]} 21. Rc3 {[%clk 0:03:56.4]} 21... h6 {[%clk 0:03:03.9]}
22. h3 {[%clk 0:03:50]} 22... e5 {[%clk 0:03:02.4]} 23. a3 {[%clk 0:03:37.8]}
23... Bd8 {[%clk 0:02:55.8]} 24. Bb4 {[%clk 0:03:33]} 24... exd4 {[%clk
0:02:46.9]} 25. Nxd4 {[%clk 0:03:24.8]} 25... Rd7 {[%clk 0:02:39.8]} 26. Na6
{[%clk 0:03:20.3]} 26... Rb6 {[%clk 0:02:37]} 27. Nc5 {[%clk 0:03:19.6]} 27...
Rc7 {[%clk 0:02:33.3]} 28. Nxf5 {[%clk 0:03:18]} 28... Rcc6 {[%clk 0:02:17.9]}
29. Nd4 {[%clk 0:03:16.2]} 29... Rf6 {[%clk 0:02:11.8]} 30. Nd7 {[%clk
0:03:14.4]} 30... Rxb4 {[%clk 0:02:01]} 31. Nxf6+ {[%clk 0:03:11.4]} 31... Bxf6
{[%clk 0:01:59.7]} 32. axb4 {[%clk 0:03:11]} 32... Bxd4 {[%clk 0:01:56.3]} 33.
exd4 {[%clk 0:03:09.7]} 33... Kh7 {[%clk 0:01:53.7]} 34. Rxa7 {[%clk 0:03:09.6]}
34... h5 {[%clk 0:01:51.9]} 35. Rxf7 {[%clk 0:03:08.6]} 35... Kh6 {[%clk
0:01:50.5]} 36. b5 {[%clk 0:03:08.2]} 36... Nh8 {[%clk 0:01:47.6]} 37. b6 {[%clk
0:03:08.1]} 37... Nxf7 {[%clk 0:01:46.5]} 38. b7 {[%clk 0:03:08]} 38... Nd6
{[%clk 0:01:39.1]} 39. b8=Q {[%clk 0:03:07.9]} 39... Ne4 {[%clk 0:01:38.5]} 40.
Rc6+ {[%clk 0:03:05.9]} 40... Nf6 {[%clk 0:01:34.9]} 41. Qf4+ {[%clk 0:03:03.6]}
41... Kh7 {[%clk 0:01:32.3]} 42. Qf5+ {[%clk 0:03:03]} 42... Kh6 {[%clk
0:01:30.9]} 43. g4 {[%clk 0:03:01.2]} 43... hxg4 {[%clk 0:01:23.7]} 44. hxg4
{[%clk 0:02:59.4]} 44... g5 {[%clk 0:01:19.1]} 45. Qxf6+ {[%clk 0:02:52.9]}
45... Kh7 {[%clk 0:01:17]} 46. Rc7+ {[%clk 0:02:52.8]} 46... Kg8 {[%clk
0:01:15.9]} 47. Qd8# {[%clk 0:02:52.7]} 1-0

[Event "Live Chess"]
[Site "Chess.com"]
[Date "2023.05.21"]
[Round "-"]
[White "KeithArkell"]
[Black "Pablo_dmp"]
[Result "1-0"]
[WhiteElo "2511"]
[BlackElo "1856"]
[TimeControl "300"]
[EndTime "2:43:05 PDT"]
[Termination "KeithArkell won by resignation"]

1. d4 {[%clk 0:04:57.8]} 1... d5 {[%clk 0:04:54.9]} 2. Nf3 {[%clk 0:04:57]} 2...
Nf6 {[%clk 0:04:52.8]} 3. c4 {[%clk 0:04:55.4]} 3... dxc4 {[%clk 0:04:47.4]} 4.
e3 {[%clk 0:04:54.1]} 4... b5 {[%clk 0:04:37.6]} 5. a4 {[%clk 0:04:50.4]} 5...
c6 {[%clk 0:04:24.6]} 6. b3 {[%clk 0:04:49.5]} 6... Be6 {[%clk 0:04:10.9]} 7.
bxc4 {[%clk 0:04:43.8]} 7... Bxc4 {[%clk 0:04:00]} 8. Bxc4 {[%clk 0:04:42.1]}
8... bxc4 {[%clk 0:03:59.9]} 9. Qc2 {[%clk 0:04:41.1]} 9... Qd5 {[%clk
0:03:51.3]} 10. Ba3 {[%clk 0:04:37.1]} 10... Nbd7 {[%clk 0:03:46.3]} 11. Nbd2
{[%clk 0:04:34.5]} 11... e6 {[%clk 0:03:33.6]} 12. Bxf8 {[%clk 0:04:27.8]} 12...
Rxf8 {[%clk 0:03:33.5]} 13. Qxc4 {[%clk 0:04:26.7]} 13... Qxc4 {[%clk
0:03:30.2]} 14. Nxc4 {[%clk 0:04:25.5]} 14... Nb6 {[%clk 0:03:26.7]} 15. Nfe5
{[%clk 0:04:22.5]} 15... Nxc4 {[%clk 0:03:18.7]} 16. Nxc4 {[%clk 0:04:22.4]}
16... Kd7 {[%clk 0:03:15.3]} 17. Ke2 {[%clk 0:04:20.5]} 17... h5 {[%clk
0:03:11.8]} 18. Rhc1 {[%clk 0:04:19.1]} 18... a5 {[%clk 0:03:04.4]} 19. Nb6+
{[%clk 0:04:17.5]} 1-0

[Event "Live Chess"]
[Site "Chess.com"]
[Date "2023.05.21"]
[Round "-"]
[White "NatashaRegan"]
[Black "GwaryTek"]
[Result "0-1"]
[WhiteElo "1739"]
[BlackElo "2048"]
[TimeControl "300"]
[EndTime "2:43:13 PDT"]
[Termination "GwaryTek won by checkmate"]

1. e4 {[%clk 0:04:50.6]} 1... Nf6 {[%clk 0:04:59.9]} 2. e5 {[%clk 0:04:49.1]}
2... Nd5 {[%clk 0:04:58.1]} 3. d4 {[%clk 0:04:47.9]} 3... d6 {[%clk 0:04:56.9]}
4. c4 {[%clk 0:04:46.7]} 4... Nb6 {[%clk 0:04:56]} 5. f4 {[%clk 0:04:44.2]} 5...
dxe5 {[%clk 0:04:55]} 6. fxe5 {[%clk 0:04:43.3]} 6... c5 {[%clk 0:04:54.6]} 7.
d5 {[%clk 0:04:39.3]} 7... e6 {[%clk 0:04:53.9]} 8. d6 {[%clk 0:04:36.4]} 8...
Qh4+ {[%clk 0:04:52.8]} 9. Kd2 {[%clk 0:03:46.8]} 9... Qd4+ {[%clk 0:04:19.7]}
10. Kc2 {[%clk 0:03:42.1]} 10... Qxe5 {[%clk 0:04:16.7]} 11. Nf3 {[%clk
0:03:34.1]} 11... Qxd6 {[%clk 0:04:14.8]} 12. Bd3 {[%clk 0:03:29.5]} 12... Nc6
{[%clk 0:04:12.9]} 13. Nc3 {[%clk 0:03:25.8]} 13... Nb4+ {[%clk 0:04:10.7]} 14.
Kb3 {[%clk 0:03:06.3]} 14... Qxd3 {[%clk 0:03:36.4]} 15. Bd2 {[%clk 0:02:47.5]}
15... Qxc4+ {[%clk 0:03:16.4]} 16. Ka3 {[%clk 0:02:43.8]} 16... Qa6+ {[%clk
0:03:14]} 17. Kb3 {[%clk 0:02:38.9]} 17... c4# {[%clk 0:03:12.6]} 0-1

[Event "Live Chess"]
[Site "Chess.com"]
[Date "2023.05.21"]
[Round "-"]
[White "TheSmoulderingMaster"]
[Black "Tech_Titan"]
[Result "1-0"]
[WhiteElo "1723"]
[BlackElo "1126"]
[TimeControl "300"]
[EndTime "2:43:19 PDT"]
[Termination "TheSmoulderingMaster won by resignation"]

1. e4 {[%clk 0:04:58.6]} 1... e5 {[%clk 0:04:57.1]} 2. Nf3 {[%clk 0:04:57.5]}
2... Nc6 {[%clk 0:04:55.6]} 3. Bb5 {[%clk 0:04:56.6]} 3... Bc5 {[%clk
0:04:50.1]} 4. O-O {[%clk 0:04:55.2]} 4... Nf6 {[%clk 0:04:48.5]} 5. c3 {[%clk
0:04:54.1]} 5... Nxe4 {[%clk 0:04:45.6]} 6. d4 {[%clk 0:04:53.2]} 6... exd4
{[%clk 0:04:44.4]} 7. Re1 {[%clk 0:04:51.6]} 7... d5 {[%clk 0:04:36]} 8. Nxd4
{[%clk 0:04:48.4]} 8... O-O {[%clk 0:04:31]} 9. Nxc6 {[%clk 0:04:43.8]} 9...
bxc6 {[%clk 0:04:29.3]} 10. Bxc6 {[%clk 0:04:42.3]} 10... Nf6 {[%clk 0:04:24]}
11. Bxa8 {[%clk 0:04:39]} 1-0

[Event "Live Chess"]
[Site "Chess.com"]
[Date "2023.05.21"]
[Round "-"]
[White "Ferrarifan27"]
[Black "stevochess11"]
[Result "1-0"]
[WhiteElo "2095"]
[BlackElo "1730"]
[TimeControl "300"]
[EndTime "2:43:27 PDT"]
[Termination "Ferrarifan27 won by resignation"]

1. e4 {[%clk 0:04:59]} 1... c6 {[%clk 0:04:57.1]} 2. d4 {[%clk 0:04:56.4]} 2...
d5 {[%clk 0:04:56]} 3. e5 {[%clk 0:04:53.3]} 3... h5 {[%clk 0:04:49.3]} 4. h4
{[%clk 0:04:46.7]} 4... Nh6 {[%clk 0:04:42.9]} 5. c3 {[%clk 0:04:41]} 5... f6
{[%clk 0:04:26.9]} 6. Qxh5+ {[%clk 0:04:36.8]} 6... Kd7 {[%clk 0:04:25.1]} 7.
Be2 {[%clk 0:04:25.3]} 7... Qe8 {[%clk 0:04:14.4]} 8. Bg4+ {[%clk 0:04:13.7]}
8... e6 {[%clk 0:04:12.6]} 9. Qxe8+ {[%clk 0:04:02.8]} 9... Kxe8 {[%clk
0:04:11.1]} 10. Bxh6 {[%clk 0:03:59.8]} 10... Rxh6 {[%clk 0:04:08.8]} 11. Nf3
{[%clk 0:03:58.7]} 11... Nd7 {[%clk 0:04:04.3]} 12. Bxe6 {[%clk 0:03:56]} 12...
Nb6 {[%clk 0:04:03.1]} 13. Bxc8 {[%clk 0:03:54.7]} 13... Rxc8 {[%clk 0:04:02.3]}
14. Nbd2 {[%clk 0:03:52.5]} 14... fxe5 {[%clk 0:03:57.1]} 15. Nxe5 {[%clk
0:03:51]} 15... Re6 {[%clk 0:03:54.1]} 16. O-O {[%clk 0:03:49.4]} 16... Bd6
{[%clk 0:03:52.8]} 17. Rae1 {[%clk 0:03:45.6]} 17... Ke7 {[%clk 0:03:51.1]} 18.
Ng6+ {[%clk 0:03:43.8]} 18... Kf6 {[%clk 0:03:47.5]} 19. Rxe6+ {[%clk
0:03:39.7]} 19... Kxe6 {[%clk 0:03:46.5]} 20. Nf3 {[%clk 0:03:36.1]} 20... Nc4
{[%clk 0:03:43.8]} 21. b3 {[%clk 0:03:34.2]} 21... Na3 {[%clk 0:03:39]} 22. Nge5
{[%clk 0:03:30.3]} 22... Nb5 {[%clk 0:03:37.6]} 23. c4 {[%clk 0:03:27.7]} 23...
dxc4 {[%clk 0:03:36.6]} 24. bxc4 {[%clk 0:03:27.4]} 24... Nxd4 {[%clk
0:03:34.6]} 25. Nxd4+ {[%clk 0:03:20.6]} 25... Kxe5 {[%clk 0:03:33.6]} 26. Nf3+
{[%clk 0:03:19.4]} 26... Kf4 {[%clk 0:03:08]} 27. Rd1 {[%clk 0:03:15.2]} 27...
Rd8 {[%clk 0:02:58.8]} 28. Ng5 {[%clk 0:03:13.2]} 28... Kg4 {[%clk 0:02:52.8]}
29. g3 {[%clk 0:03:00.9]} 29... Be7 {[%clk 0:02:47.3]} 30. Rxd8 {[%clk
0:02:58.8]} 30... Bxd8 {[%clk 0:02:46.4]} 31. Ne6 {[%clk 0:02:55.7]} 31... Bf6
{[%clk 0:02:44.4]} 32. Kg2 {[%clk 0:02:54.3]} 32... Kf5 {[%clk 0:02:39.9]} 33.
Nc5 {[%clk 0:02:53.1]} 33... b6 {[%clk 0:02:33.9]} 34. Nb3 {[%clk 0:02:48.8]}
34... Ke4 {[%clk 0:02:29.4]} 35. c5 {[%clk 0:02:48.1]} 35... b5 {[%clk
0:02:24.4]} 36. Kh3 {[%clk 0:02:38.7]} 36... Kd5 {[%clk 0:02:21.8]} 37. g4
{[%clk 0:02:37.5]} 37... Bd4 {[%clk 0:02:09.7]} 38. Nxd4 {[%clk 0:02:32.9]}
38... Kxd4 {[%clk 0:02:09.6]} 39. g5 {[%clk 0:02:31]} 39... Kxc5 {[%clk
0:02:06]} 40. h5 {[%clk 0:02:29.9]} 40... Kd4 {[%clk 0:02:04.7]} 41. h6 {[%clk
0:02:28.8]} 41... gxh6 {[%clk 0:02:03.3]} 42. gxh6 {[%clk 0:02:28.7]} 42... c5
{[%clk 0:02:01]} 43. h7 {[%clk 0:02:28.1]} 43... c4 {[%clk 0:02:00.9]} 44. h8=Q+
{[%clk 0:02:27.3]} 44... Kd3 {[%clk 0:01:58.5]} 45. Qh7+ {[%clk 0:02:25.8]}
45... Kc3 {[%clk 0:01:56.9]} 46. Qxa7 {[%clk 0:02:24.5]} 46... Kb4 {[%clk
0:01:56.8]} 47. Qd4 {[%clk 0:02:20.7]} 47... Ka3 {[%clk 0:01:55.3]} 48. Qc5+
{[%clk 0:02:18.3]} 48... Kxa2 {[%clk 0:01:53.7]} 49. Qxb5 {[%clk 0:02:16.8]}
49... c3 {[%clk 0:01:53]} 50. Qc4+ {[%clk 0:02:14]} 50... Kb2 {[%clk 0:01:52.1]}
51. Qb4+ {[%clk 0:02:13.2]} 51... Kc2 {[%clk 0:01:50.9]} 52. f4 {[%clk
0:02:12.5]} 52... Kd2 {[%clk 0:01:49.9]} 53. Qd4+ {[%clk 0:02:11.1]} 53... Kc2
{[%clk 0:01:48.3]} 54. f5 {[%clk 0:02:10.3]} 54... Kb2 {[%clk 0:01:47.5]} 55.
Qb4+ {[%clk 0:02:08.9]} 55... Kc2 {[%clk 0:01:46.4]} 56. f6 {[%clk 0:02:08.3]}
56... Kd1 {[%clk 0:01:45]} 57. Qxc3 {[%clk 0:02:05.8]} 1-0

[Event "Live Chess"]
[Site "Chess.com"]
[Date "2023.05.21"]
[Round "-"]
[White "RichardABates"]
[Black "PrinceCharming_1"]
[Result "1-0"]
[WhiteElo "2090"]
[BlackElo "1622"]
[TimeControl "300"]
[EndTime "2:43:37 PDT"]
[Termination "RichardABates won by resignation"]

1. d4 {[%clk 0:04:58.2]} 1... Nf6 {[%clk 0:04:59.1]} 2. Nf3 {[%clk 0:04:56.6]}
2... e6 {[%clk 0:04:58.4]} 3. c4 {[%clk 0:04:55.6]} 3... Bb4+ {[%clk 0:04:57.6]}
4. Bd2 {[%clk 0:04:54.3]} 4... Bxd2+ {[%clk 0:04:57.2]} 5. Qxd2 {[%clk
0:04:53.4]} 5... d5 {[%clk 0:04:56.2]} 6. e3 {[%clk 0:04:51.7]} 6... O-O {[%clk
0:04:55.2]} 7. Nc3 {[%clk 0:04:48.9]} 7... c6 {[%clk 0:04:50.5]} 8. Bd3 {[%clk
0:04:47.5]} 8... Nbd7 {[%clk 0:04:46.4]} 9. O-O {[%clk 0:04:46.1]} 9... Qe7
{[%clk 0:04:43.2]} 10. e4 {[%clk 0:04:43.4]} 10... dxe4 {[%clk 0:04:40.1]} 11.
Nxe4 {[%clk 0:04:41.4]} 11... Nxe4 {[%clk 0:04:39]} 12. Bxe4 {[%clk 0:04:40.6]}
12... Nf6 {[%clk 0:04:38.9]} 13. Bc2 {[%clk 0:04:38.7]} 13... Qd6 {[%clk
0:04:34.9]} 14. Qe3 {[%clk 0:04:37.1]} 14... Ng4 {[%clk 0:04:32.7]} 15. Qg5
{[%clk 0:04:35.7]} 15... Nf6 {[%clk 0:04:24.4]} 16. Rad1 {[%clk 0:04:32.9]}
16... h6 {[%clk 0:04:23]} 17. Qh4 {[%clk 0:04:30]} 17... Qd8 {[%clk 0:04:16.5]}
18. Ne5 {[%clk 0:04:28.4]} 18... Nd7 {[%clk 0:04:12.1]} 19. Qe4 {[%clk
0:04:26.6]} 19... f5 {[%clk 0:04:10.3]} 20. Qe2 {[%clk 0:04:20.8]} 20... Nf6
{[%clk 0:04:06.5]} 21. c5 {[%clk 0:04:12.3]} 21... Qc7 {[%clk 0:04:05.2]} 22.
Bb3 {[%clk 0:04:08.4]} 22... Nd5 {[%clk 0:04:00.4]} 23. Bxd5 {[%clk 0:04:06.8]}
23... cxd5 {[%clk 0:03:59.5]} 24. b4 {[%clk 0:04:05]} 24... f4 {[%clk
0:03:47.7]} 25. f3 {[%clk 0:04:02.6]} 25... b6 {[%clk 0:03:41.8]} 26. Rc1 {[%clk
0:03:34.8]} 26... Qd8 {[%clk 0:03:32]} 27. a4 {[%clk 0:03:29]} 27... bxc5 {[%clk
0:03:30]} 28. dxc5 {[%clk 0:03:27.4]} 28... a5 {[%clk 0:03:25.8]} 29. b5 {[%clk
0:03:25.4]} 29... Qf6 {[%clk 0:03:18.5]} 30. c6 {[%clk 0:03:22.2]} 30... h5
{[%clk 0:03:13.1]} 31. Rfe1 {[%clk 0:03:15.2]} 31... Re8 {[%clk 0:02:53.9]} 32.
Qd3 {[%clk 0:03:08.6]} 32... Qf5 {[%clk 0:02:43.6]} 33. Qxf5 {[%clk 0:03:06.2]}
33... exf5 {[%clk 0:02:43.5]} 34. b6 {[%clk 0:03:05.2]} 34... Ba6 {[%clk
0:02:42.4]} 35. b7 {[%clk 0:03:01.6]} 35... Bxb7 {[%clk 0:02:41.7]} 36. cxb7
{[%clk 0:02:59.9]} 36... Rab8 {[%clk 0:02:41.6]} 37. Rc7 {[%clk 0:02:55.2]}
37... Re6 {[%clk 0:02:35]} 38. Rc8+ {[%clk 0:02:53.3]} 38... Re8 {[%clk
0:02:34.1]} 39. Nc6 {[%clk 0:02:47.1]} 39... Rexc8 {[%clk 0:02:32]} 40. bxc8=Q+
{[%clk 0:02:44.6]} 1-0